[Event "1000GM 0003 GM Norm 2022"]
[Site "Saint Louis"]
[Date "2022.09.25"]
[Round "9.4"]
[White "Antipov, Mikhail Al."]
[Black "Kretchetov, Alexandre"]
[Result "1-0"]
[ECO "B47"]
[WhiteElo "2603"]
[BlackElo "2144"]
[Annotator "TA"]
[PlyCount "85"]
[EventDate "2022.09.21"]
[EventType "tourn"]
[EventCountry "USA"]
[SourceTitle "playchess.com"]
[Source "ChessBase"]
[SourceQuality "1"]
[TimeControl "5400+30"]

{[%evp 19,85,23,25,26,43,17,27,0,0,0,0,0,6,0,49,0,22,0,0,0,140,139,290,277,450,412,1164,1143,1141,1129,1047,1015,918,610,609,602,587,587,681,675,697,697,690,681,935,940,940,942,913,942,920,904,864,854,846,795,1784,1791,1784,1578,852,852,819,792,770,743,710,668]} 1. e4 {[%emt 0:00:11]} c5 {[%emt 0:00:17]} 2. Nf3 {[%emt 0:00:23]} e6 {[%emt 0:00:44]} 3. d4 {[%emt 0:01:03]} cxd4 {[%emt 0:00:25]} 4. Nxd4 {[%emt 0:00:04]} Nc6 {[%emt 0:00:07]} 5. Nc3 {[%emt 0:00:05]} Qc7 {[%emt 0:00:10]} 6. f4 {[%emt 0:00:11]} a6 {[%emt 0:01:58]} 7. Nxc6 {[%emt 0:00:12]} Qxc6 {[%emt 0:01:33]} 8. Bd3 {[%emt 0:00:17]} b5 {[%emt 0:12:03]} 9. Qe2 {[%emt 0:00:19]} Bb7 {[%emt 0:01:37]} 10. Bd2 {[%emt 0:00:15]} Nf6 {[%emt 0:06:49]} 11. e5 {[%emt 0:14:04] B47: Sicilian: Taimanov: 5 Nc3 Qc7 6 f4, 6 g3 and 6 Be2.} Nd5 {[%emt 0:05:38]} (11... Qxg2 $2 12. Qxg2 Bxg2 13. Rg1 $18) 12. Be4 {[%emt 0:04:22]} Qc5 {[%emt 0:02:04]} 13. Qf3 {[%emt 0:06:07] White has an edge.} Rc8 {[%emt 0:02:34]} 14. Nxd5 {[%emt 0:03:00]} Bxd5 {[%emt 0:00:25]} 15. Bxd5 {[%emt 0:00:32]} exd5 {[%emt 0:00:27]} 16. c3 {[%emt 0:06:25]} Qc4 {[%emt 0:04:19] [#]} (16... d4 $11 {deserves consideration.}) 17. Rd1 $146 {[%emt 0:08:08]} (17. b3 $14 {is more appropriate.} Qc6 18. O-O) ({Predecessor:} 17. b3 Qe4+ 18. Qxe4 dxe4 19. O-O-O d5 20. exd6 Bxd6 21. Kb2 h5 22. Be3 Ke7 23. g3 {½-½ (23) Tolnai,T (2540)-Begovac,F (2420) Makarska 1994}) 17... Qxa2 {[%emt 0:22:20]} 18. O-O {[%emt 0:00:58] Black must now prevent Kh1.} Bc5+ {[%emt 0:01:39]} (18... Qxb2 19. Qxd5 Be7 20. f5 $14 (20. Bc1 Qxc3 21. Qxd7+ Kf8 $14)) 19. Kh1 {[%emt 0:00:54] Hoping for f5.} Qc4 {[%emt 0:05:11] [#]} ({Don't do} 19... Qxb2 20. Qxd5 O-O 21. Ra1 $14) (19... O-O $11 {remains equal.}) 20. f5 $1 $16 {[%emt 0:03:31][%cal Bf4f5,Bf5f6][%mdl 1056] White has strong compensation.} Rc6 $2 {[%emt 0:05:13] [#] This costs Black the game.} (20... O-O $16 {is a better defense.}) 21. Qg3 $1 $18 {[%emt 0:13:04]} O-O {[%emt 0:05:31]} (21... Bf8 {was necessary.} 22. Rde1 b4) 22. b4 {[%emt 0:02:11]} ({Resist} 22. f6 g6 23. b4 Re8 24. bxc5 Qxc5 $18) 22... Ba7 {[%emt 0:02:04]} (22... f6 $142 23. Bh6 Rf7 24. bxc5 Qxc5) 23. f6 {[%emt 0:01:14][%csl Gf6][%cal Rg3g7] White is clearly winning.} g6 {[%emt 0:00:07]} 24. Qg5 {[%emt 0:02:08] Intending Qh6 and mate.} Kh8 {[%emt 0:00:31]} 25. Rf3 {[%emt 0:01:27] White threatens Qh6 and mate.} ({Not} 25. Qh6 Rg8 $14) 25... Qe2 {[%emt 0:07:30]} 26. Re1 {[%emt 0:00:36] Qh6 would kill now.} Be3 {[%emt 0:01:28]} 27. Qxe3 {[%emt 0:01:25]} Qxe3 {[%emt 0:00:04]} 28. Rfxe3 {[%emt 0:00:26]} Re6 {[%emt 0:00:29]} 29. Rd3 {[%emt 0:01:12][%cal Be3d3,Bd3d5,Bd5e5][%mdl 32]} d6 {[%emt 0:00:06]} 30. Rxd5 {[%emt 0:01:00]} dxe5 {[%emt 0:00:03]} 31. Rdxe5 {[%emt 0:00:25]} Rxf6 {[%emt 0:00:11]} 32. Bh6 {[%emt 0:00:20]} Rg8 {[%emt 0:00:01]} 33. h4 {[%emt 0:01:58]} Rc6 {[%emt 0:00:05]} 34. Re8 {[%emt 0:00:51] Threatening mate with Rxg8+.} Rc8 {[%emt 0:00:05]} 35. Rxc8 {[%emt 0:01:22]} Rxc8 {[%emt 0:00:03][%mdl 4096] Endgame KRB-KR} 36. Re7 {[%emt 0:00:24]} Kg8 {[%emt 0:00:04]} 37. Ra7 {[%emt 0:00:17]} f5 {[%emt 0:00:04]} 38. Rg7+ {[%emt 0:01:10]} Kh8 {[%emt 0:00:07]} 39. Rf7 {[%emt 0:00:05]} Kg8 {[%emt 0:00:12]} 40. Rf6 {[%emt 0:00:06]} Ra8 {[%emt 0:00:09]} 41. Kg1 {[%emt 0:00:08]} Rc8 {[%emt 0:00:24]} 42. Kf2 {[%emt 0:00:05]} Ra8 {[%emt 0:00:28]} 43. Ke3 {[%emt 0:00:10] Weighted Error Value: White=0.36/Black=0.46} 1-0